[Event "*** Titled Tuesday Blitz"]
[Site "Chess.com"]
[Date "2020.04.14"]
[Round "8"]
[White "Bacyanide"]
[Black "Alliswell998"]
[Result "1-0"]
[WhiteElo "2346"]
[BlackElo "2531"]
[TimeControl "180+1"]
[EndTime "11:31:21 PDT"]
[Termination "Bacyanide won by checkmate"]

1. d4 {[%clk 0:03:00.9]} 1... Nf6 {[%clk 0:02:59.8]} 2. c4 {[%clk 0:02:50.6]}
2... c5 {[%clk 0:02:59.9]} 3. d5 {[%clk 0:02:50.3]} 3... b5 {[%clk 0:03:00.5]}
4. Qc2 {[%clk 0:02:50.2]} 4... g6 {[%clk 0:02:59.2]} 5. e4 {[%clk 0:02:50.2]}
5... d6 {[%clk 0:02:59.1]} 6. cxb5 {[%clk 0:02:48.6]} 6... Bg7 {[%clk
0:02:59.5]} 7. Nf3 {[%clk 0:02:46.3]} 7... a6 {[%clk 0:02:59.9]} 8. bxa6 {[%clk
0:02:43.4]} 8... O-O {[%clk 0:02:59.1]} 9. Bc4 {[%clk 0:02:42.3]} 9... Bxa6
{[%clk 0:02:57.2]} 10. Nbd2 {[%clk 0:02:42.1]} 10... Qa5 {[%clk 0:02:47.8]} 11.
O-O {[%clk 0:02:41.2]} 11... Nbd7 {[%clk 0:02:42.7]} 12. Bxa6 {[%clk 0:02:40]}
12... Qxa6 {[%clk 0:02:42.3]} 13. Nc4 {[%clk 0:02:39.8]} 13... Rfb8 {[%clk
0:02:37.6]} 14. Bd2 {[%clk 0:02:35.4]} 14... Nb6 {[%clk 0:02:33.8]} 15. Nxb6
{[%clk 0:02:33.3]} 15... Rxb6 {[%clk 0:02:32.5]} 16. Bc3 {[%clk 0:02:33.6]}
16... Qa4 {[%clk 0:02:29.6]} 17. Qxa4 {[%clk 0:02:27.1]} 17... Rxa4 {[%clk
0:02:30.5]} 18. b3 {[%clk 0:01:35.1]} 18... Rxe4 {[%clk 0:02:29.4]} 19. Nd2
{[%clk 0:01:34.3]} 19... Re2 {[%clk 0:02:26.8]} 20. Rfd1 {[%clk 0:01:33.6]}
20... Rb8 {[%clk 0:02:18.1]} 21. Kf1 {[%clk 0:01:26.8]} 21... Rxd2 {[%clk
0:02:14]} 22. Bxd2 {[%clk 0:01:24.1]} 22... Nxd5 {[%clk 0:02:09.1]} 23. Rab1
{[%clk 0:01:23.8]} 23... Bd4 {[%clk 0:01:52.8]} 24. a4 {[%clk 0:01:22.7]} 24...
e5 {[%clk 0:01:42.9]} 25. a5 {[%clk 0:01:17.8]} 25... Ra8 {[%clk 0:01:40.5]} 26.
Rdc1 {[%clk 0:01:07.3]} 26... Kg7 {[%clk 0:01:37.4]} 27. Rc4 {[%clk 0:01:07]}
27... f5 {[%clk 0:01:33.2]} 28. Ra4 {[%clk 0:01:06.8]} 28... Ra6 {[%clk
0:01:31.8]} 29. b4 {[%clk 0:01:06.3]} 29... cxb4 {[%clk 0:01:30]} 30. Bxb4
{[%clk 0:01:07.2]} 30... Kf6 {[%clk 0:01:23]} 31. Bd2 {[%clk 0:01:01.9]} 31...
Bc3 {[%clk 0:01:19]} 32. Rd1 {[%clk 0:00:58]} 32... Ke6 {[%clk 0:01:12.2]} 33.
Be1 {[%clk 0:00:51.2]} 33... Bd4 {[%clk 0:01:05.2]} 34. Rc1 {[%clk 0:00:50.8]}
34... Bc5 {[%clk 0:00:56.6]} 35. Rb1 {[%clk 0:00:48.6]} 35... g5 {[%clk
0:00:51.3]} 36. Rb7 {[%clk 0:00:47.8]} 36... Nf6 {[%clk 0:00:47.6]} 37. Bd2
{[%clk 0:00:43.6]} 37... h6 {[%clk 0:00:45.8]} 38. Be3 {[%clk 0:00:43.2]} 38...
Ne4 {[%clk 0:00:41.9]} 39. Ra1 {[%clk 0:00:34.3]} 39... Kd5 {[%clk 0:00:31.5]}
40. Bxc5 {[%clk 0:00:33.7]} 40... Nxc5 {[%clk 0:00:32.4]} 41. Rh7 {[%clk
0:00:33.7]} 41... Nb3 {[%clk 0:00:29.6]} 42. Ra3 {[%clk 0:00:26.1]} 42... Nxa5
{[%clk 0:00:23.8]} 43. Rxh6 {[%clk 0:00:25.9]} 43... Kc5 {[%clk 0:00:23.4]} 44.
Rf6 {[%clk 0:00:25.4]} 44... f4 {[%clk 0:00:23]} 45. Rg6 {[%clk 0:00:24.5]}
45... Kb4 {[%clk 0:00:23.2]} 46. Ra1 {[%clk 0:00:23.7]} 46... Rc6 {[%clk
0:00:21.9]} 47. Rxg5 {[%clk 0:00:23]} 47... Nb3 {[%clk 0:00:22.6]} 48. Rd1
{[%clk 0:00:22.5]} 48... Nd4 {[%clk 0:00:20.8]} 49. h4 {[%clk 0:00:22.6]} 49...
Rc7 {[%clk 0:00:18.5]} 50. h5 {[%clk 0:00:22.2]} 50... Rh7 {[%clk 0:00:18.6]}
51. Rc1 {[%clk 0:00:20.5]} 51... Rh6 {[%clk 0:00:14.7]} 52. Rc8 {[%clk
0:00:19.1]} 52... e4 {[%clk 0:00:13.6]} 53. Rd5 {[%clk 0:00:18.2]} 53... Nb3
{[%clk 0:00:09.7]} 54. Rd8 {[%clk 0:00:18.1]} 54... e3 {[%clk 0:00:08.7]} 55.
R8xd6 {[%clk 0:00:18.1]} 55... Nd2+ {[%clk 0:00:06.4]} 56. Ke2 {[%clk
0:00:18.2]} 56... Rh8 {[%clk 0:00:04.4]} 57. fxe3 {[%clk 0:00:17.7]} 57... fxe3
{[%clk 0:00:05.3]} 58. Kxe3 {[%clk 0:00:18.4]} 58... Nc4+ {[%clk 0:00:05.8]} 59.
Kf4 {[%clk 0:00:18]} 59... Nxd6 {[%clk 0:00:06.7]} 60. Rxd6 {[%clk 0:00:18.4]}
60... Rxh5 {[%clk 0:00:06.9]} 61. g4 {[%clk 0:00:19.3]} 61... Rh1 {[%clk
0:00:06.6]} 62. g5 {[%clk 0:00:19.7]} 62... Kc5 {[%clk 0:00:07.1]} 63. Rd2
{[%clk 0:00:18.6]} 63... Rg1 {[%clk 0:00:05]} 64. Kf5 {[%clk 0:00:18.7]} 64...
Kc4 {[%clk 0:00:04]} 65. g6 {[%clk 0:00:18.5]} 65... Kc3 {[%clk 0:00:04.6]} 66.
Rd7 {[%clk 0:00:18.6]} 66... Kc4 {[%clk 0:00:03.9]} 67. Kf6 {[%clk 0:00:18.9]}
67... Rf1+ {[%clk 0:00:03.2]} 68. Ke7 {[%clk 0:00:17.5]} 68... Rg1 {[%clk
0:00:03.1]} 69. Kf7 {[%clk 0:00:17.6]} 69... Rf1+ {[%clk 0:00:04]} 70. Kg8
{[%clk 0:00:17.9]} 70... Kc5 {[%clk 0:00:01.9]} 71. g7 {[%clk 0:00:18.2]} 71...
Kc6 {[%clk 0:00:02.8]} 72. Rf7 {[%clk 0:00:18.4]} 72... Rh1 {[%clk 0:00:01.4]}
73. Kf8 {[%clk 0:00:18.2]} 73... Rc1 {[%clk 0:00:01.1]} 74. g8=Q {[%clk
0:00:19]} 74... Rd1 {[%clk 0:00:01.1]} 75. Qg6+ {[%clk 0:00:17.9]} 75... Rd6
{[%clk 0:00:02]} 76. Rf6 {[%clk 0:00:17.5]} 76... Kd7 {[%clk 0:00:01.7]} 77.
Rxd6+ {[%clk 0:00:17.5]} 77... Kc8 {[%clk 0:00:02.6]} 78. Qf7 {[%clk 0:00:17.4]}
78... Kb8 {[%clk 0:00:02.7]} 79. Rd8# {[%clk 0:00:18.3]} 1-0

[Event "*** Titled Tuesday Blitz"]
[Site "Chess.com"]
[Date "2020.04.14"]
[Round "8"]
[White "kuli4ik"]
[Black "chessdjw"]
[Result "1-0"]
[WhiteElo "2792"]
[BlackElo "2618"]
[TimeControl "180+1"]
[EndTime "11:31:22 PDT"]
[Termination "kuli4ik won by resignation"]

1. d4 {[%clk 0:02:58.1]} 1... Nf6 {[%clk 0:02:56.1]} 2. Bg5 {[%clk 0:02:55.5]}
2... d5 {[%clk 0:02:53.9]} 3. Bxf6 {[%clk 0:02:55.2]} 3... gxf6 {[%clk
0:02:54.8]} 4. e3 {[%clk 0:02:54.8]} 4... c5 {[%clk 0:02:55.4]} 5. c3 {[%clk
0:02:55.3]} 5... e5 {[%clk 0:02:54.3]} 6. Nf3 {[%clk 0:02:53.1]} 6... Nc6 {[%clk
0:02:53.3]} 7. Be2 {[%clk 0:02:51.6]} 7... Be6 {[%clk 0:02:46.2]} 8. O-O {[%clk
0:02:42.8]} 8... Qb6 {[%clk 0:02:42.9]} 9. Qb3 {[%clk 0:02:42]} 9... Be7 {[%clk
0:02:41.7]} 10. Nbd2 {[%clk 0:02:36]} 10... O-O {[%clk 0:02:40.8]} 11. Rfd1
{[%clk 0:02:29.8]} 11... Rfc8 {[%clk 0:02:40.6]} 12. Nf1 {[%clk 0:02:14.4]}
12... e4 {[%clk 0:02:25.4]} 13. Ne1 {[%clk 0:02:04.8]} 13... c4 {[%clk
0:01:55.8]} 14. Qc2 {[%clk 0:02:03]} 14... Qc7 {[%clk 0:01:51.1]} 15. f3 {[%clk
0:01:59.2]} 15... f5 {[%clk 0:01:51]} 16. fxe4 {[%clk 0:01:57]} 16... fxe4
{[%clk 0:01:50.7]} 17. Bh5 {[%clk 0:01:45.4]} 17... f5 {[%clk 0:01:37.5]} 18. g3
{[%clk 0:01:43.9]} 18... Bg5 {[%clk 0:01:20.2]} 19. Ng2 {[%clk 0:01:42.6]} 19...
Bf7 {[%clk 0:01:20.6]} 20. Bxf7+ {[%clk 0:01:37.4]} 20... Qxf7 {[%clk
0:01:21.5]} 21. Nf4 {[%clk 0:01:37.9]} 21... Bxf4 {[%clk 0:01:20.5]} 22. exf4
{[%clk 0:01:38.8]} 22... b5 {[%clk 0:01:19.4]} 23. a3 {[%clk 0:01:37.7]} 23...
a5 {[%clk 0:01:17.8]} 24. Ne3 {[%clk 0:01:37.8]} 24... Kh8 {[%clk 0:01:15.2]}
25. Qg2 {[%clk 0:01:34.1]} 25... Ne7 {[%clk 0:01:05.8]} 26. Qh3 {[%clk
0:01:32.3]} 26... Rg8 {[%clk 0:01:05.3]} 27. Kh1 {[%clk 0:01:19.9]} 27... Ra6
{[%clk 0:01:05.8]} 28. Rg1 {[%clk 0:01:18.3]} 28... Rag6 {[%clk 0:01:02.5]} 29.
Qf1 {[%clk 0:01:09.4]} 29... Rh6 {[%clk 0:01:00.2]} 30. Qf2 {[%clk 0:01:09.5]}
30... Qh5 {[%clk 0:00:56.6]} 31. Rg2 {[%clk 0:01:05.2]} 31... Rb6 {[%clk
0:00:51.2]} 32. Rag1 {[%clk 0:01:03.7]} 32... Rbg6 {[%clk 0:00:45]} 33. h3
{[%clk 0:00:48]} 33... Qxh3+ {[%clk 0:00:34.6]} 34. Rh2 {[%clk 0:00:48]} 34...
Rxg3 {[%clk 0:00:35.4]} 35. Rxh3 {[%clk 0:00:34.5]} 35... Rxh3+ {[%clk
0:00:34.9]} 36. Qh2 {[%clk 0:00:34.3]} 36... Rxh2+ {[%clk 0:00:34.4]} 37. Kxh2
{[%clk 0:00:35.2]} 37... Rxg1 {[%clk 0:00:34.6]} 38. Kxg1 {[%clk 0:00:36.1]}
38... Kg7 {[%clk 0:00:35]} 39. Kg2 {[%clk 0:00:36.4]} 39... Kf6 {[%clk
0:00:34.7]} 40. Kg3 {[%clk 0:00:36.9]} 40... h6 {[%clk 0:00:30.5]} 41. Kh3
{[%clk 0:00:34.1]} 41... Ke6 {[%clk 0:00:30]} 42. Kg3 {[%clk 0:00:29.9]} 42...
Ng6 {[%clk 0:00:30.5]} 43. Ng2 {[%clk 0:00:29.6]} 43... Kd6 {[%clk 0:00:29.1]}
44. Ne3 {[%clk 0:00:29.4]} 44... Kc6 {[%clk 0:00:28.9]} 45. Nxf5 {[%clk
0:00:28.7]} 45... b4 {[%clk 0:00:29]} 46. axb4 {[%clk 0:00:28.2]} 46... axb4
{[%clk 0:00:29.9]} 47. Nxh6 {[%clk 0:00:23.7]} 47... bxc3 {[%clk 0:00:27.9]} 48.
bxc3 {[%clk 0:00:23.6]} 48... Kb5 {[%clk 0:00:28.2]} 49. f5 {[%clk 0:00:18.1]}
49... Nf8 {[%clk 0:00:27.9]} 50. Ng4 {[%clk 0:00:17.8]} 50... Kc6 {[%clk
0:00:16.2]} 51. Kf4 {[%clk 0:00:17.7]} 51... Kd6 {[%clk 0:00:16.7]} 52. Ne3
{[%clk 0:00:16.1]} 52... Nh7 {[%clk 0:00:15.6]} 53. Ng4 {[%clk 0:00:14.4]} 53...
Nf8 {[%clk 0:00:15.7]} 54. Kg5 {[%clk 0:00:13]} 54... Nd7 {[%clk 0:00:14.9]} 55.
Kg6 {[%clk 0:00:11]} 55... Ke7 {[%clk 0:00:14.3]} 56. Kg7 {[%clk 0:00:11.2]}
56... Kd6 {[%clk 0:00:10.2]} 57. f6 {[%clk 0:00:11.2]} 57... Ke6 {[%clk
0:00:06.6]} 58. f7 {[%clk 0:00:10.7]} 58... Kf5 {[%clk 0:00:07.3]} 59. Ne3+
{[%clk 0:00:10]} 59... Kf4 {[%clk 0:00:06.9]} 60. Nxd5+ {[%clk 0:00:10.2]} 60...
Kf3 {[%clk 0:00:07.5]} 61. Nf6 {[%clk 0:00:09.8]} 61... e3 {[%clk 0:00:02.2]}
62. Nxd7 {[%clk 0:00:09.3]} 62... e2 {[%clk 0:00:03.1]} 63. f8=Q+ {[%clk
0:00:10.2]} 63... Ke3 {[%clk 0:00:03.9]} 64. Qe7+ {[%clk 0:00:10.3]} 64... Kd2
{[%clk 0:00:04.6]} 65. Nb6 {[%clk 0:00:10.5]} 65... e1=Q {[%clk 0:00:04.8]} 66.
Nxc4+ {[%clk 0:00:10.6]} 66... Kxc3 {[%clk 0:00:03.6]} 67. Qxe1+ {[%clk
0:00:11.5]} 67... Kxc4 {[%clk 0:00:03.3]} 68. Qe3 {[%clk 0:00:11.6]} 68... Kd5
{[%clk 0:00:04.2]} 69. Kf6 {[%clk 0:00:12.1]} 69... Kc4 {[%clk 0:00:04.6]} 70.
Qe4 {[%clk 0:00:11.9]} 70... Kb4 {[%clk 0:00:05.5]} 71. Qd5 {[%clk 0:00:11.7]}
71... Kc3 {[%clk 0:00:06.4]} 72. Qc5+ {[%clk 0:00:12.2]} 72... Kd3 {[%clk
0:00:07.3]} 73. d5 {[%clk 0:00:12.6]} 73... Ke4 {[%clk 0:00:08.2]} 74. d6 {[%clk
0:00:13]} 74... Kf4 {[%clk 0:00:08.9]} 75. d7 {[%clk 0:00:13.1]} 75... Kg4
{[%clk 0:00:09.5]} 76. d8=Q {[%clk 0:00:12.7]} 1-0

[Event "*** Titled Tuesday Blitz"]
[Site "Chess.com"]
[Date "2020.04.14"]
[Round "8"]
[White "Kirill_Klukin"]
[Black "dey2580"]
[Result "1-0"]
[WhiteElo "2696"]
[BlackElo "2459"]
[TimeControl "180+1"]
[EndTime "11:31:24 PDT"]
[Termination "Kirill_Klukin won by resignation"]

1. d4 {[%clk 0:02:59.8]} 1... Nf6 {[%clk 0:02:59.7]} 2. Nf3 {[%clk 0:02:59.6]}
2... e6 {[%clk 0:02:59.9]} 3. g3 {[%clk 0:02:59.1]} 3... c5 {[%clk 0:02:58.7]}
4. c3 {[%clk 0:02:55.6]} 4... Nc6 {[%clk 0:02:58.1]} 5. Bg2 {[%clk 0:02:55.5]}
5... d5 {[%clk 0:02:57.3]} 6. O-O {[%clk 0:02:55.4]} 6... Be7 {[%clk 0:02:55.9]}
7. Bf4 {[%clk 0:02:48.5]} 7... O-O {[%clk 0:02:55.8]} 8. dxc5 {[%clk 0:02:42.6]}
8... Bxc5 {[%clk 0:02:55.4]} 9. b4 {[%clk 0:02:43.2]} 9... Bd6 {[%clk
0:02:53.8]} 10. Bxd6 {[%clk 0:02:38]} 10... Qxd6 {[%clk 0:02:53.9]} 11. a3
{[%clk 0:02:38.9]} 11... e5 {[%clk 0:02:51.7]} 12. Nfd2 {[%clk 0:02:33.5]} 12...
Rd8 {[%clk 0:02:50.1]} 13. Qc1 {[%clk 0:02:30.3]} 13... Bf5 {[%clk 0:02:49.6]}
14. c4 {[%clk 0:02:30.1]} 14... Nd4 {[%clk 0:02:48.6]} 15. Nc3 {[%clk
0:02:24.6]} 15... dxc4 {[%clk 0:02:42]} 16. Nxc4 {[%clk 0:02:21.2]} 16... Qe6
{[%clk 0:02:40]} 17. Ne3 {[%clk 0:01:23.7]} 17... Rac8 {[%clk 0:02:37.9]} 18.
Re1 {[%clk 0:01:22.6]} 18... Nb3 {[%clk 0:02:31]} 19. Qb2 {[%clk 0:01:22.8]}
19... Nxa1 {[%clk 0:02:31]} 20. Qxa1 {[%clk 0:01:23.7]} 20... b6 {[%clk
0:02:27.6]} 21. Nb5 {[%clk 0:01:18.8]} 21... Be4 {[%clk 0:02:24.7]} 22. Nxa7
{[%clk 0:01:15.3]} 22... Bxg2 {[%clk 0:02:07.5]} 23. Nxg2 {[%clk 0:01:06.6]}
23... Ra8 {[%clk 0:01:49.6]} 24. Nb5 {[%clk 0:01:05.9]} 24... Qc4 {[%clk
0:01:47.9]} 25. Nc3 {[%clk 0:01:04.6]} 25... Rdc8 {[%clk 0:01:42.1]} 26. Nd1
{[%clk 0:01:02.7]} 26... Qxb4 {[%clk 0:01:32.2]} 27. Qxe5 {[%clk 0:00:53.8]}
27... Rxa3 {[%clk 0:01:27]} 28. Nde3 {[%clk 0:00:53.9]} 28... Re8 {[%clk
0:01:24.9]} 29. Qg5 {[%clk 0:00:53]} 29... h6 {[%clk 0:01:24.1]} 30. Qf5 {[%clk
0:00:47]} 30... Qe4 {[%clk 0:01:22.9]} 31. Qb5 {[%clk 0:00:46.1]} 31... Qe6
{[%clk 0:00:47.6]} 32. Nf4 {[%clk 0:00:43.4]} 32... Qb3 {[%clk 0:00:47.5]} 33.
Qc6 {[%clk 0:00:42.2]} 33... Qc3 {[%clk 0:00:44.1]} 34. Rc1 {[%clk 0:00:36.9]}
34... Qxc6 {[%clk 0:00:43.2]} 35. Rxc6 {[%clk 0:00:37.8]} 35... b5 {[%clk
0:00:42.3]} 36. Rb6 {[%clk 0:00:37.8]} 36... Rb3 {[%clk 0:00:42.1]} 37. Nd3
{[%clk 0:00:35.2]} 37... Ne4 {[%clk 0:00:39.2]} 38. Nd5 {[%clk 0:00:34.1]} 38...
Rd8 {[%clk 0:00:35]} 39. Ne7+ {[%clk 0:00:26.5]} 39... Kf8 {[%clk 0:00:31]} 40.
Nc6 {[%clk 0:00:26.3]} 40... Rc8 {[%clk 0:00:26.7]} 41. Nd4 {[%clk 0:00:26.4]}
41... Rb1+ {[%clk 0:00:25.3]} 42. Kg2 {[%clk 0:00:26.5]} 42... Nc3 {[%clk
0:00:23.7]} 43. Rb7 {[%clk 0:00:23.7]} 43... Rd1 {[%clk 0:00:20.3]} 44. Nxb5
{[%clk 0:00:18.9]} 44... Rb1 {[%clk 0:00:15.4]} 45. Rc7 {[%clk 0:00:07.8]} 45...
Rxc7 {[%clk 0:00:14.7]} 46. Nxc7 {[%clk 0:00:08.7]} 46... Nxe2 {[%clk
0:00:14.7]} 47. Nd5 {[%clk 0:00:09.4]} 47... Nd4 {[%clk 0:00:15]} 48. N5f4
{[%clk 0:00:09.5]} 48... Rd1 {[%clk 0:00:13.9]} 49. Nc5 {[%clk 0:00:09.5]} 49...
g5 {[%clk 0:00:13.7]} 50. Nfd3 {[%clk 0:00:09.1]} 50... Rd2 {[%clk 0:00:13.9]}
51. h3 {[%clk 0:00:09.4]} 51... h5 {[%clk 0:00:13.9]} 52. Ne5 {[%clk 0:00:09.7]}
52... Kg7 {[%clk 0:00:13.3]} 53. g4 {[%clk 0:00:06.9]} 53... hxg4 {[%clk
0:00:13]} 54. hxg4 {[%clk 0:00:07.8]} 54... Re2 {[%clk 0:00:12.6]} 55. Nf3
{[%clk 0:00:07.9]} 55... f6 {[%clk 0:00:12]} 56. Nxd4 {[%clk 0:00:07.3]} 56...
Re5 {[%clk 0:00:11.8]} 57. Nf5+ {[%clk 0:00:07.6]} 57... Kg6 {[%clk 0:00:11.6]}
58. Nd3 {[%clk 0:00:08.1]} 58... Re4 {[%clk 0:00:11.8]} 59. f3 {[%clk
0:00:07.6]} 59... Re2+ {[%clk 0:00:11.2]} 60. Nf2 {[%clk 0:00:08.1]} 60... Rd2
{[%clk 0:00:11.3]} 61. Kg3 {[%clk 0:00:08.7]} 61... Re2 {[%clk 0:00:11.4]} 62.
Ne4 {[%clk 0:00:09.2]} 62... Rc2 {[%clk 0:00:10.8]} 63. Ne7+ {[%clk 0:00:09.5]}
63... Kf7 {[%clk 0:00:10.6]} 64. Nd5 {[%clk 0:00:10]} 64... Rc6 {[%clk
0:00:10.1]} 65. Kf2 {[%clk 0:00:10.2]} 65... Re6 {[%clk 0:00:09.2]} 66. Ke3
{[%clk 0:00:10.4]} 66... Kg6 {[%clk 0:00:08.5]} 67. Nxf6 {[%clk 0:00:07.7]}
67... Re5 {[%clk 0:00:07.6]} 68. Nd7 {[%clk 0:00:06.8]} 68... Rb5 {[%clk
0:00:06.9]} 69. Ndc5 {[%clk 0:00:06.9]} 69... Rb4 {[%clk 0:00:06.1]} 70. Nd3
{[%clk 0:00:07]} 70... Ra4 {[%clk 0:00:06]} 71. Kf2 {[%clk 0:00:07.1]} 71... Ra5
{[%clk 0:00:05.7]} 72. Kg3 {[%clk 0:00:06.6]} 72... Rd5 {[%clk 0:00:05.5]} 73.
Ndf2 {[%clk 0:00:07.2]} 73... Re5 {[%clk 0:00:05.4]} 74. Nh3 {[%clk 0:00:07.8]}
74... Rd5 {[%clk 0:00:04.1]} 75. Nhxg5 {[%clk 0:00:08.4]} 75... Rd3 {[%clk
0:00:04.4]} 76. Nh3 {[%clk 0:00:08.6]} 76... Rd8 {[%clk 0:00:03.9]} 77. Nf4+
{[%clk 0:00:09.1]} 1-0

[Event "*** Titled Tuesday Blitz"]
[Site "Chess.com"]
[Date "2020.04.14"]
[Round "8"]
[White "Mischuk_D"]
[Black "SmirnovTimofey2000"]
[Result "1-0"]
[WhiteElo "2707"]
[BlackElo "2567"]
[TimeControl "180+1"]
[EndTime "11:31:39 PDT"]
[Termination "Mischuk_D won by resignation"]

1. e4 {[%clk 0:03:00.9]} 1... e5 {[%clk 0:02:55.9]} 2. Nf3 {[%clk 0:02:59.9]}
2... Nc6 {[%clk 0:02:55.6]} 3. Bb5 {[%clk 0:02:57.4]} 3... a6 {[%clk 0:02:54.1]}
4. Ba4 {[%clk 0:02:57.5]} 4... Nf6 {[%clk 0:02:53.9]} 5. O-O {[%clk 0:02:56.7]}
5... Be7 {[%clk 0:02:53.3]} 6. d3 {[%clk 0:02:57.1]} 6... b5 {[%clk 0:02:52.8]}
7. Bb3 {[%clk 0:02:57]} 7... O-O {[%clk 0:02:53.7]} 8. a3 {[%clk 0:02:56.6]}
8... Bb7 {[%clk 0:02:51.4]} 9. Nc3 {[%clk 0:02:56.8]} 9... d6 {[%clk 0:02:47.8]}
10. h3 {[%clk 0:02:27.1]} 10... Na5 {[%clk 0:02:45.7]} 11. Ba2 {[%clk
0:02:27.1]} 11... c5 {[%clk 0:02:36.5]} 12. Bg5 {[%clk 0:02:24.4]} 12... b4
{[%clk 0:02:34]} 13. axb4 {[%clk 0:02:14.6]} 13... cxb4 {[%clk 0:02:33.1]} 14.
Bxf6 {[%clk 0:02:15]} 14... Bxf6 {[%clk 0:02:27.4]} 15. Nd5 {[%clk 0:02:12.7]}
15... b3 {[%clk 0:02:27.3]} 16. Nxf6+ {[%clk 0:02:06.8]} 16... Qxf6 {[%clk
0:02:26]} 17. Bxb3 {[%clk 0:02:05.3]} 17... Nxb3 {[%clk 0:02:25.6]} 18. cxb3
{[%clk 0:02:06.2]} 18... d5 {[%clk 0:02:25.5]} 19. Nd2 {[%clk 0:02:02.2]} 19...
Rfd8 {[%clk 0:02:16.5]} 20. Qe2 {[%clk 0:02:01.9]} 20... Qd6 {[%clk 0:02:10.3]}
21. Rfd1 {[%clk 0:01:52.3]} 21... Rac8 {[%clk 0:02:08.4]} 22. Nf3 {[%clk
0:01:48.6]} 22... f6 {[%clk 0:02:06.3]} 23. Qe3 {[%clk 0:01:31.2]} 23... Qb4
{[%clk 0:01:54.7]} 24. exd5 {[%clk 0:01:23.7]} 24... Bxd5 {[%clk 0:01:44.8]} 25.
Rxa6 {[%clk 0:01:15.9]} 25... Qxb3 {[%clk 0:01:44.7]} 26. Rd2 {[%clk 0:01:10.5]}
26... Qb7 {[%clk 0:00:47.8]} 27. Ra7 {[%clk 0:01:09]} 27... Qb8 {[%clk
0:00:46.5]} 28. Ra1 {[%clk 0:00:42.6]} 28... Rc7 {[%clk 0:00:25.3]} 29. Nh4
{[%clk 0:00:27.3]} 29... Rb7 {[%clk 0:00:23]} 30. d4 {[%clk 0:00:21.1]} 30...
Rxb2 {[%clk 0:00:20]} 31. Rad1 {[%clk 0:00:15]} 31... Rxd2 {[%clk 0:00:19.1]}
32. Rxd2 {[%clk 0:00:15.4]} 32... e4 {[%clk 0:00:09.5]} 33. Nf5 {[%clk
0:00:15.2]} 33... Qc7 {[%clk 0:00:09.5]} 34. Rd1 {[%clk 0:00:13.7]} 34... Re8
{[%clk 0:00:09.2]} 35. Rc1 {[%clk 0:00:13.7]} 35... Qd7 {[%clk 0:00:09.3]} 36.
Qf4 {[%clk 0:00:13.2]} 36... g6 {[%clk 0:00:09]} 37. Ne3 {[%clk 0:00:13.4]}
37... Re7 {[%clk 0:00:07]} 38. Qb8+ {[%clk 0:00:12.7]} 38... Kg7 {[%clk
0:00:06.6]} 39. Rc8 {[%clk 0:00:12.8]} 39... Bf7 {[%clk 0:00:06.3]} 40. d5
{[%clk 0:00:09.5]} 40... Bxd5 {[%clk 0:00:05.5]} 41. Nxd5 {[%clk 0:00:09.8]}
41... Qxd5 {[%clk 0:00:04.9]} 42. Kh2 {[%clk 0:00:08.7]} 42... Qe5+ {[%clk
0:00:03.8]} 43. Qxe5 {[%clk 0:00:08.1]} 43... Rxe5 {[%clk 0:00:04.1]} 44. Rc3
{[%clk 0:00:09]} 44... Kf7 {[%clk 0:00:03.2]} 45. g4 {[%clk 0:00:09.2]} 45...
Re7 {[%clk 0:00:03.8]} 46. Kg3 {[%clk 0:00:09.6]} 46... Ke6 {[%clk 0:00:04]} 47.
Kf4 {[%clk 0:00:09.8]} 47... Kd5 {[%clk 0:00:04]} 48. Ra3 {[%clk 0:00:09.8]}
48... Kd6 {[%clk 0:00:02.6]} 49. Ra6+ {[%clk 0:00:09.7]} 49... Kd5 {[%clk
0:00:02.8]} 50. Rxf6 {[%clk 0:00:09.8]} 50... Kd4 {[%clk 0:00:03]} 51. Rf8
{[%clk 0:00:09.6]} 51... Kd3 {[%clk 0:00:02.6]} 52. Ra8 {[%clk 0:00:07.7]} 52...
Ke2 {[%clk 0:00:02.6]} 53. Ra2+ {[%clk 0:00:07]} 53... Kf1 {[%clk 0:00:02.8]}
54. Kg3 {[%clk 0:00:06.1]} 54... Ke1 {[%clk 0:00:01.8]} 55. g5 {[%clk 0:00:05]}
55... e3 {[%clk 0:00:02]} 56. fxe3 {[%clk 0:00:05.1]} 56... Rxe3+ {[%clk
0:00:02.6]} 57. Kg4 {[%clk 0:00:05.9]} 57... Re4+ {[%clk 0:00:02.7]} 58. Kf3
{[%clk 0:00:06.1]} 58... Re5 {[%clk 0:00:02.3]} 59. Kf4 {[%clk 0:00:05.9]} 59...
Rf5+ {[%clk 0:00:02.4]} 60. Kg4 {[%clk 0:00:06.3]} 60... Rf7 {[%clk 0:00:02.7]}
61. h4 {[%clk 0:00:06.7]} 61... Kf1 {[%clk 0:00:02.7]} 62. h5 {[%clk 0:00:06.9]}
62... Rg7 {[%clk 0:00:02]} 63. h6 {[%clk 0:00:05.5]} 63... Rf7 {[%clk
0:00:02.1]} 64. Ra8 {[%clk 0:00:05.4]} 64... Re7 {[%clk 0:00:02.3]} 65. Rg8
{[%clk 0:00:05.4]} 65... Ra7 {[%clk 0:00:01.9]} 66. Rg7 {[%clk 0:00:05.2]} 66...
Ra4+ {[%clk 0:00:02.8]} 67. Kf3 {[%clk 0:00:05.5]} 67... Ra3+ {[%clk 0:00:03.7]}
68. Ke4 {[%clk 0:00:05.9]} 68... Ra5 {[%clk 0:00:03.8]} 69. Kf4 {[%clk
0:00:05.6]} 69... Rf5+ {[%clk 0:00:03.9]} 70. Kg4 {[%clk 0:00:06]} 70... Ra5
{[%clk 0:00:04.4]} 71. Rxh7 {[%clk 0:00:05.9]} 71... Ra4+ {[%clk 0:00:05.3]} 72.
Kf3 {[%clk 0:00:06.3]} 72... Ra3+ {[%clk 0:00:04.8]} 73. Kf4 {[%clk 0:00:06.7]}
73... Kg2 {[%clk 0:00:05.7]} 74. Rg7 {[%clk 0:00:06.3]} 74... Ra6 {[%clk
0:00:05]} 75. h7 {[%clk 0:00:06.1]} 75... Ra4+ {[%clk 0:00:05.9]} 76. Ke5 {[%clk
0:00:05.9]} 76... Rh4 {[%clk 0:00:06.5]} 77. Kf6 {[%clk 0:00:05.7]} 1-0